bitfinex-derivatives/quotes_BTCF0:USTF0_20241203
["timestamp","ask_amount","ask_price","bid_price","bid_amount"]
[1733209785017,0.0315,95641.0,95639.0,0.065373]
[1733209785217,0.083772,95641.0,95639.0,0.0131]
[1733209785816,0.0315,95641.0,95639.0,0.065373]
[1733209787016,0.0345,95641.0,95639.0,0.065373]
[1733209787817,0.0345,95641.0,95639.0,0.0131]
[1733209787818,0.0365,95641.0,95639.0,0.0131]
[1733209788020,0.0335,95641.0,95639.0,0.0131]
[1733209788322,0.0365,95641.0,95639.0,0.065372]
[1733209788728,0.0365,95641.0,95640.0,0.16232]
[1733209789025,0.088772,95641.0,95640.0,0.16232]
[1733209790213,0.088772,95641.0,95639.0,0.0131]
[1733209790214,0.089772,95641.0,95639.0,0.0131]
[1733209790517,0.089772,95641.0,95622.0,0.021]
[1733209790518,0.05228,95626.0,95622.0,0.021]
[1733209790715,0.05228,95626.0,95618.0,0.052284]
[1733209790716,0.052281,95624.0,95618.0,0.052284]
[1733209790923,0.3912,95625.0,95618.0,0.052284]
[1733209791315,0.3912,95625.0,95617.0,0.16228]
[1733209791513,0.3912,95625.0,95613.0,0.43956]
[1733209791717,0.3608,95614.0,95613.0,0.43956]
[1733209792123,0.3608,95614.0,95612.0,0.214567]
[1733209792929,0.413087,95614.0,95612.0,0.214567]
[1733209793224,0.413087,95614.0,95611.0,0.0209269]
[1733209793225,0.3608,95614.0,95611.0,0.0209269]
[1733209793624,0.3608,95614.0,95612.0,0.004]
[1733209793815,0.413087,95614.0,95612.0,0.004]
[1733209794926,0.413087,95614.0,95612.0,0.006]
[1733209795729,0.413087,95614.0,95612.0,0.002]
[1733209795927,0.3608,95614.0,95613.0,0.052287]
[1733209796119,0.45307016,95614.0,95613.0,0.052287]
[1733209796722,0.55818309,95614.0,95613.0,0.052287]
[1733209797424,0.09227016,95614.0,95613.0,0.057287]
[1733209797629,0.19723106,95614.0,95613.0,0.005]
[1733209797832,0.1972285,95614.0,95613.0,0.057287]
[1733209798524,0.09227016,95614.0,95613.0,0.057287]
[1733209799327,0.09227016,95614.0,95613.0,0.16732]
[1733209799816,0.09227016,95614.0,95613.0,0.005]
[1733209800021,0.052286,95615.0,95613.0,0.005]
[1733209800232,0.4316826,95614.0,95613.0,0.005]
[1733209800430,0.19689311,95614.0,95613.0,0.005]
[1733209800626,0.22759311,95614.0,95613.0,0.005]
[1733209801035,0.3506835,95614.0,95613.0,0.005]
[1733209802032,0.57226892,95614.0,95613.0,0.004]
[1733209802237,0.54144869,95614.0,95613.0,0.004]
[1733209802425,0.21189311,95614.0,95613.0,0.002]
[1733209803024,0.20289311,95614.0,95613.0,0.001]
[1733209803227,0.21257554,95614.0,95613.0,0.002]
[1733209803736,0.32285583,95614.0,95613.0,0.002]
[1733209803940,0.21257554,95614.0,95613.0,0.002]
[1733209804432,0.10738078,95614.0,95613.0,0.002]
[1733209805028,0.26133055,95614.0,95613.0,0.002]
[1733209805224,0.10738078,95614.0,95613.0,0.002]
[1733209806142,0.46928838,95614.0,95613.0,0.002]
[1733209806329,0.56613554,95614.0,95613.0,0.006]
[1733209806634,0.66083554,95614.0,95613.0,0.006]
[1733209807028,0.78002816,95614.0,95613.0,0.007]
[1733209807537,0.78002816,95614.0,95602.0,0.0026]
[1733209807538,1.23415589,95614.0,95602.0,0.0026]
[1733209807837,0.052295,95598.0,95597.0,0.0026]
[1733209808028,0.052298,95593.0,95591.0,0.15628]
[1733209808223,0.45340062,95592.0,95591.0,0.15628]
[1733209808427,0.45340062,95592.0,95590.0,0.052299]
[1733209808428,0.45348804,95592.0,95590.0,0.052299]
[1733209808638,0.09260062,95591.0,95590.0,0.052299]
[1733209809133,0.36088742,95592.0,95590.0,0.052299]
[1733209809836,8.742e-05,95592.0,95590.0,0.053299]
[1733209810032,8.742e-05,95592.0,95591.0,0.3608]
[1733209810227,8.742e-05,95592.0,95591.0,0.3921]
[1733209810428,0.0026,95598.0,95597.0,0.052296]
[1733209810627,0.0026,95598.0,95591.0,0.3921]
[1733209810628,0.0026,95604.0,95603.0,0.052292]
[1733209810828,0.0026,95610.0,95609.0,0.052289]
[1733209811143,0.27699922,95617.0,95604.0,0.052292]
[1733209811144,0.27704591,95617.0,95604.0,0.052292]
[1733209811324,0.66877809,95624.0,95603.0,0.51764]
[1733209811632,0.3608,95616.0,95613.0,0.052287]
[1733209811836,0.3608,95616.0,95603.0,0.51708]
[1733209811837,0.3608,95616.0,95615.0,0.052286]
[1733209812027,0.3608,95616.0,95615.0,0.208566]
[1733209812531,0.45710768,95616.0,95615.0,0.15628]
[1733209813538,0.3618,95616.0,95615.0,0.15628]
[1733209813734,0.3628,95616.0,95615.0,0.15628]
[1733209814431,0.001,95616.0,95615.0,0.15628]
[1733209814634,0.002,95616.0,95615.0,0.15628]
[1733209815534,0.3608,95623.0,95622.0,0.052282]
[1733209815842,0.45709712,95623.0,95622.0,0.052282]
[1733209816034,0.45709743,95623.0,95622.0,0.052282]
[1733209816431,0.45709743,95623.0,95615.0,0.15628]
[1733209816642,0.30825009,95617.0,95615.0,0.208565]
[1733209816830,0.09629743,95616.0,95615.0,0.208565]
[1733209817032,0.33877324,95618.0,95617.0,0.052285]
[1733209817237,0.0963074,95618.0,95617.0,0.052285]
[1733209817440,0.09630676,95618.0,95617.0,0.052285]
[1733209817637,0.20884045,95618.0,95617.0,0.208565]
[1733209817937,0.20884085,95618.0,95617.0,0.208565]
[1733209818245,0.20884093,95618.0,95617.0,0.208565]
[1733209818630,0.20884093,95618.0,95617.0,0.15628]
[1733209818830,0.20884093,95620.0,95617.0,0.208565]
[1733209819038,0.20884093,95619.0,95617.0,0.208565]
[1733209819241,0.20884093,95618.0,95617.0,0.208565]
[1733209819840,0.20884093,95618.0,95617.0,0.209565]
[1733209820043,0.11253417,95618.0,95617.0,0.209565]
[1733209820340,0.09630676,95618.0,95617.0,0.053285]
[1733209820542,0.20884093,95618.0,95617.0,0.001]
[1733209820750,0.20884093,95618.0,95613.0,0.0105]
[1733209820751,0.052286,95614.0,95613.0,0.0105]
[1733209820931,0.413086,95614.0,95613.0,0.0105]
[1733209821248,0.62192785,95614.0,95613.0,0.0105]
[1733209821946,0.62192785,95614.0,95613.0,0.00629564]
[1733209821947,0.56964185,95614.0,95613.0,0.00629564]
[1733209822137,0.5696581,95614.0,95613.0,0.00629564]
[1733209822338,0.5696581,95614.0,95613.0,0.00929564]
[1733209822745,0.2088581,95614.0,95613.0,0.00929564]
[1733209822941,0.11253409,95621.0,95620.0,0.052283]
[1733209823246,0.11253409,95621.0,95620.0,0.569363]
[1733209823634,0.20883665,95621.0,95620.0,0.569363]
[1733209823834,0.11253409,95621.0,95620.0,0.569363]
[1733209824554,0.09627967,95621.0,95620.0,0.569363]
[1733209824764,0.30856356,95628.0,95627.0,0.052279]
[1733209824952,0.0962769,95628.0,95627.0,0.052279]
[1733209825631,0.30856356,95629.0,95627.0,0.15628]
[1733209825632,0.052278,95629.0,95627.0,0.15628]
[1733209825832,0.052278,95629.0,95625.0,0.4402]
[1733209825833,0.052279,95627.0,95625.0,0.00056]
[1733209826043,0.0962948,95626.0,95625.0,0.00056]
[1733209826245,0.0962948,95626.0,95624.0,0.20856]
[1733209826446,0.052279,95627.0,95624.0,0.20856]
[1733209826649,0.09629684,95626.0,95624.0,0.20856]
[1733209826847,0.0321,95628.0,95626.0,0.05228]
[1733209827148,0.09929395,95627.0,95626.0,0.05228]
[1733209828845,0.09629395,95627.0,95626.0,0.05228]
[1733209829047,0.31431052,95627.0,95626.0,0.05228]
[1733209829247,0.006,95627.0,95626.0,0.05228]
[1733209829444,0.003,95627.0,95626.0,0.05228]
[1733209829751,0.007,95627.0,95626.0,0.05228]
[1733209830340,0.007,95627.0,95626.0,0.20852]
[1733209830539,0.007,95627.0,95626.0,0.05228]
[1733209830844,0.10328333,95627.0,95626.0,0.20852]
[1733209831844,0.10328333,95627.0,95626.0,0.05228]
[1733209832243,0.007,95627.0,95626.0,0.20852]
[1733209832451,0.103283,95627.0,95626.0,0.20852]
[1733209834954,0.103283,95627.0,95626.0,0.05228]
[1733209835160,0.007,95627.0,95626.0,0.20512]
[1733209836048,0.10328227,95627.0,95626.0,0.20512]
[1733209836461,0.00088001,95639.0,95626.0,0.15284]
[1733209836652,0.3608,95659.0,95638.0,0.3608]
[1733209836653,0.30829915,95640.0,95638.0,0.3608]
[1733209836848,0.30829915,95641.0,95639.0,0.207713]
[1733209837059,0.0329,95654.0,95639.0,0.207713]
[1733209837060,0.09626773,95640.0,95639.0,0.207713]
[1733209837956,0.10226773,95640.0,95639.0,0.207713]
[1733209838664,0.052267,95650.0,95639.0,0.15644]
[1733209838856,0.09626936,95649.0,95640.0,0.052272]
[1733209839052,0.09626936,95648.0,95646.0,0.052269]
[1733209839257,0.09626936,95647.0,95646.0,0.052269]
[1733209839652,0.42372,95651.0,95648.0,0.052268]
[1733209839853,0.42372,95651.0,95649.0,0.205067]
[1733209839854,0.20875924,95650.0,95649.0,0.205067]
[1733209840162,0.5526917,95650.0,95649.0,0.205067]
[1733209840364,0.44320179,95650.0,95649.0,0.205067]
[1733209840555,0.10426933,95650.0,95649.0,0.205067]
[1733209841055,0.10426933,95650.0,95649.0,0.565867]
[1733209841056,0.10126933,95650.0,95649.0,0.565867]
[1733209841462,0.30815573,95650.0,95649.0,0.565867]
[1733209841766,0.09626933,95650.0,95649.0,0.565867]
[1733209841957,0.3608,95668.0,95649.0,0.565867]
[1733209841958,0.08436129,95653.0,95652.0,0.052265]
[1733209842265,0.0026,95670.0,95668.0,0.052257]
[1733209842454,0.33893246,95676.0,95675.0,0.052253]
[1733209842651,0.3608,95677.0,95675.0,0.052253]
[1733209843662,0.3608,95677.0,95669.0,0.36136]
[1733209843663,0.3608,95677.0,95676.0,0.1528]
[1733209843870,0.3608,95677.0,95676.0,0.205052]
[1733209844161,0.3618,95677.0,95676.0,0.1528]
[1733209844959,0.3608,95677.0,95676.0,0.1528]
[1733209845256,0.3628,95677.0,95676.0,0.1528]
[1733209846469,0.3628,95677.0,95668.0,0.44268]
[1733209846766,0.3628,95677.0,95674.0,0.15276]
[1733209846767,0.052252,95676.0,95674.0,0.15276]
[1733209846963,0.052252,95676.0,95674.0,0.10286]
[1733209847362,0.052252,95676.0,95669.0,0.052256]
[1733209847559,0.052252,95676.0,95670.0,0.205015]
[1733209847759,0.052253,95674.0,95670.0,0.205015]
[1733209848067,0.052253,95674.0,95671.0,0.02091855]
[1733209848253,0.052253,95674.0,95671.0,0.07317355]
[1733209848668,0.052253,95674.0,95672.0,0.052254]
[1733209849473,0.058253,95674.0,95672.0,0.052254]
[1733209850052,0.01,95674.0,95672.0,0.052254]
[1733209850857,0.006,95674.0,95672.0,0.052254]
[1733209851159,0.3608,95677.0,95676.0,0.052252]
[1733209852568,0.3618,95677.0,95676.0,0.052252]
[1733209853166,0.3628,95677.0,95676.0,0.052252]
[1733209854168,0.3628,95677.0,95676.0,0.205012]
[1733209857673,0.002,95677.0,95676.0,0.22433683]
[1733209859075,0.3608,95691.0,95687.0,0.052246]
[1733209859379,0.3608,95691.0,95690.0,0.052244]
[1733209862376,0.3608,95691.0,95690.0,0.07208416]
[1733209863971,0.3608,95691.0,95690.0,0.22480416]
[1733209864368,0.3608,95691.0,95690.0,0.01984016]
[1733209864569,0.413044,95691.0,95690.0,0.14856]
[1733209864771,0.413044,95691.0,95683.0,0.0227553]
[1733209864772,0.3608,95691.0,95683.0,0.0227553]
[1733209865074,0.052248,95685.0,95684.0,0.14856]
[1733209865471,0.3608,95691.0,95683.0,0.0026]
[1733209865670,0.3608,95691.0,95689.0,0.052245]
[1733209866166,0.3688,95691.0,95689.0,0.052245]
[1733209866874,0.3658,95691.0,95689.0,0.052245]
[1733209867270,0.418044,95691.0,95690.0,0.14856]
[1733209867579,0.413044,95691.0,95690.0,0.14856]
[1733209868273,0.413044,95691.0,95689.0,0.052245]
[1733209868274,0.3608,95691.0,95689.0,0.052245]
[1733209868578,0.3608,95691.0,95689.0,0.200805]
[1733209869477,0.413044,95691.0,95689.0,0.14856]
[1733209869778,0.413044,95691.0,95689.0,0.200805]
[1733209869968,0.3608,95691.0,95689.0,0.200805]
[1733209870979,0.413044,95691.0,95689.0,0.14856]
[1733209871279,0.09623051,95690.0,95689.0,0.14856]
[1733209871575,0.09623051,95690.0,95689.0,0.200805]
[1733209872869,0.09623051,95690.0,95689.0,0.201805]
[1733209873473,0.3608,95691.0,95689.0,0.201805]
[1733209874181,0.09622889,95690.0,95689.0,0.053245]
[1733209874488,0.09623207,95690.0,95689.0,0.201805]
[1733209875295,0.20868358,95690.0,95689.0,0.200805]
[1733209875504,0.09623207,95690.0,95689.0,0.200805]
[1733209876107,0.09623207,95690.0,95689.0,0.201805]
[1733209876294,0.09623207,95690.0,95689.0,0.053245]
[1733209876604,0.09623207,95690.0,95689.0,0.201805]
[1733209877300,0.20867769,95690.0,95689.0,0.201805]
[1733209877596,0.09623207,95690.0,95689.0,0.201805]
[1733209877972,0.20867902,95690.0,95689.0,0.201805]
[1733209878196,0.20867855,95690.0,95689.0,0.201805]
[1733209878386,0.09623207,95690.0,95689.0,0.201805]
[1733209879181,0.1,95700.0,95698.0,0.05224]
[1733209879385,0.1,95700.0,95699.0,0.14856]
[1733209879689,0.19622001,95700.0,95699.0,0.50936]
[1733209880373,0.19822001,95700.0,95699.0,0.50936]
[1733209881881,0.19622001,95700.0,95699.0,0.52878212]
[1733209882978,0.19621236,95700.0,95699.0,0.52878212]
[1733209883572,0.196212,95700.0,95699.0,0.52878212]
[1733209883804,0.201212,95700.0,95699.0,0.52878212]
[1733209884082,0.210212,95700.0,95699.0,0.52978212]
[1733209884589,0.207212,95700.0,95699.0,0.52978212]
[1733209884778,0.111,95700.0,95699.0,0.52978212]
[1733209885190,0.106,95700.0,95699.0,0.52978212]
[1733209885377,0.109,95700.0,95699.0,0.52978212]
[1733209885881,0.20521204,95700.0,95699.0,0.52978212]
[1733209886076,0.0026,95710.0,95709.0,0.052234]
[1733209886286,0.3608,95732.0,95709.0,0.200754]
[1733209886287,0.0026,95721.0,95709.0,0.200754]
[1733209886472,0.0026,95726.0,95725.0,0.052225]
[1733209886672,0.14431535,95731.0,95730.0,0.052222]
[1733209887776,0.14431535,95731.0,95730.0,0.053222]
[1733209887777,0.15131535,95731.0,95730.0,0.053222]
[1733209888380,0.15131535,95731.0,95730.0,0.052222]
[1733209888381,0.14631535,95731.0,95730.0,0.052222]
[1733209888581,0.0339,95731.0,95730.0,0.052222]
[1733209889379,0.14630184,95731.0,95730.0,0.052222]
[1733209889893,0.0339,95731.0,95730.0,0.052222]
[1733209890081,0.0329,95731.0,95730.0,0.052222]
[1733209890581,0.0349,95731.0,95730.0,0.052222]
[1733209890782,0.0379,95731.0,95730.0,0.053222]
[1733209891182,0.0349,95731.0,95730.0,0.052222]
[1733209891387,0.0379,95731.0,95730.0,0.07336891]
[1733209891685,0.0379,95731.0,95730.0,0.16966691]
[1733209891875,0.087122,95731.0,95730.0,0.16866691]
[1733209892189,0.090122,95731.0,95730.0,0.16966691]
[1733209892578,0.0379,95731.0,95730.0,0.16966691]
[1733209892780,0.0399,95731.0,95730.0,0.16966691]
[1733209893587,0.0349,95731.0,95730.0,0.16966691]
[1733209893790,0.0399,95731.0,95730.0,0.16966691]
[1733209894785,0.0399,95731.0,95730.0,0.19057515]
[1733209895288,0.008,95731.0,95730.0,0.19057515]
[1733209897078,0.003,95731.0,95730.0,0.19057515]
[1733209897388,0.007,95731.0,95730.0,0.19057515]
[1733209897577,0.011,95731.0,95730.0,0.19057515]
[1733209898590,0.0026,95740.0,95739.0,0.052217]
[1733209898776,0.05224,95760.0,95745.0,0.052214]
[1733209898777,0.0026,95746.0,95745.0,0.052214]
[1733209898978,0.0026,95757.0,95755.0,0.052209]
[1733209899283,0.0308,95758.0,95756.0,0.052208]
[1733209900288,0.083007,95758.0,95755.0,0.14504]
[1733209900685,0.0308,95758.0,95756.0,0.052208]
[1733209900891,0.0338,95758.0,95756.0,0.052208]
[1733209901379,0.086007,95758.0,95756.0,0.052208]
[1733209902500,0.083007,95758.0,95756.0,0.052208]
[1733209902790,0.085007,95758.0,95756.0,0.052208]
[1733209903293,0.083007,95758.0,95756.0,0.052208]
[1733209903489,0.085007,95758.0,95756.0,0.052208]
[1733209904189,0.083007,95758.0,95756.0,0.052208]
[1733209904395,0.084007,95758.0,95756.0,0.052208]
[1733209904585,0.086007,95758.0,95756.0,0.052208]
[1733209906695,0.0338,95758.0,95756.0,0.052208]
[1733209907485,0.0338,95758.0,95757.0,0.3608]
[1733209907486,0.003,95758.0,95757.0,0.3608]
[1733209908400,0.0026,95768.0,95767.0,0.052202]
[1733209908602,0.08389,95790.0,95767.0,0.145]
[1733209908603,0.0026,95779.0,95767.0,0.145]
[1733209908805,0.0026,95784.0,95783.0,0.052193]
[1733209909099,0.0307,95785.0,95783.0,0.197193]
[1733209909802,0.082893,95785.0,95783.0,0.145]
[1733209910009,0.002,95784.0,95783.0,0.001]
[1733209910303,0.002,95784.0,95783.0,0.14596]
[1733209910804,0.002,95784.0,95783.0,0.16558014]
[1733209911405,0.086893,95785.0,95783.0,0.16458014]
[1733209911700,0.0347,95785.0,95783.0,0.21777314]
[1733209912095,0.0307,95785.0,95783.0,0.21677314]
[1733209912396,0.004,95784.0,95783.0,0.21677314]
[1733209912789,0.004,95784.0,95783.0,0.21777314]
[1733209912992,0.004,95784.0,95783.0,0.001]
[1733209913702,0.086893,95785.0,95783.0,0.001]
[1733209914491,0.086893,95785.0,95781.0,0.0026]
[1733209914492,0.052194,95782.0,95781.0,1e-06]
[1733209914692,0.052194,95782.0,95747.0,0.0052]
[1733209914693,0.052204,95764.0,95747.0,0.0052]
[1733209914892,0.3608,95748.0,95744.0,0.01974686]
[1733209915094,0.3608,95748.0,95746.0,0.052214]
[1733209916294,0.3628,95748.0,95746.0,0.052214]
[1733209917696,0.3628,95748.0,95747.0,0.14496]
[1733209917888,0.3648,95748.0,95747.0,0.14496]
[1733209918906,0.3628,95748.0,95747.0,0.14496]
[1733209919104,0.3628,95748.0,95746.0,0.052214]
[1733209919105,0.3648,95748.0,95746.0,0.052214]
[1733209920100,0.3648,95748.0,95747.0,0.14496]
[1733209921001,0.3628,95748.0,95747.0,0.14496]
[1733209921203,0.3638,95748.0,95747.0,0.14496]
[1733209921609,0.3628,95748.0,95747.0,0.14496]
[1733209921797,0.3638,95748.0,95747.0,0.14496]
[1733209922000,0.3638,95748.0,95746.0,0.052214]
[1733209922001,0.416013,95748.0,95746.0,0.052214]
[1733209922204,0.416013,95748.0,95745.0,0.145]
[1733209922205,0.052214,95746.0,95745.0,0.145]
[1733209922605,0.0326,95747.0,95746.0,0.052214]
[1733209922805,0.003,95748.0,95746.0,0.052214]
[1733209923214,0.003,95748.0,95747.0,0.145]
[1733209923421,0.001,95748.0,95747.0,0.145]
[1733209924213,0.0104,95752.0,95751.0,0.052211]
[1733209925611,0.0114,95752.0,95751.0,0.052211]
[1733209926209,0.0144,95752.0,95751.0,0.052211]
[1733209927413,0.0104,95756.0,95755.0,0.052209]
[1733209927614,0.0104,95756.0,95755.0,0.413009]
[1733209928105,1e-08,95756.0,95755.0,0.413009]
[1733209928615,0.00500001,95756.0,95755.0,0.414009]
[1733209929401,0.00100001,95756.0,95755.0,0.414009]
[1733209929713,0.003,95756.0,95755.0,0.414009]
[1733209930216,0.003,95756.0,95755.0,0.193569]
[1733209930608,0.003,95756.0,95755.0,0.052209]
[1733209930811,0.003,95756.0,95755.0,0.14136]
[1733209930812,0.055208,95756.0,95755.0,0.14136]
[1733209931113,0.055208,95756.0,95755.0,0.02089902]
[1733209931314,0.052208,95756.0,95755.0,0.02089902]
[1733209932607,0.0104,95759.0,95755.0,0.02089902]
[1733209933212,0.052208,95757.0,95755.0,0.02089902]
[1733209934103,0.0104,95759.0,95755.0,0.02089902]
[1733209934308,0.0104,95759.0,95757.0,0.052208]
[1733209934815,0.0124,95759.0,95757.0,0.052208]
[1733209935016,0.064607,95759.0,95757.0,0.052208]
[1733209935211,0.0124,95759.0,95757.0,0.052208]
[1733209935514,0.0104,95759.0,95757.0,0.052208]
[1733209935818,0.0134,95759.0,95757.0,0.052208]
[1733209937608,0.065607,95759.0,95757.0,0.052208]
[1733209937809,0.052208,95757.0,95755.0,0.02089902]
[1733209938317,0.052208,95757.0,95756.0,0.052208]
[1733209938721,0.052208,95757.0,95755.0,0.02089902]
[1733209939715,0.054208,95757.0,95755.0,0.02089902]
[1733209941618,0.054208,95757.0,95755.0,0.07310702]
[1733209943214,0.11236994,95756.0,95755.0,0.07310702]
[1733209943626,0.054208,95757.0,95755.0,0.07310702]
[1733209944910,0.002,95757.0,95755.0,0.07310702]
[1733209945118,0.0104,95759.0,95758.0,0.052207]
[1733209946313,0.052208,95756.0,95755.0,0.02089902]
[1733209946524,0.413008,95756.0,95755.0,0.02089902]
[1733209947529,0.52537026,95756.0,95755.0,0.02089902]
[1733209948616,0.413008,95756.0,95755.0,0.02089902]
[1733209949020,0.415008,95756.0,95755.0,0.02089902]
[1733209950220,0.52737845,95756.0,95755.0,0.02089902]
[1733209950622,0.52737845,95756.0,95755.0,0.07310802]
[1733209950623,0.11437045,95756.0,95755.0,0.07310802]
[1733209951129,0.11437045,95756.0,95755.0,0.43390802]
[1733209951432,0.110975,95757.0,95755.0,0.43390802]
[1733209951724,0.00092,95783.0,95776.0,0.052197]
[1733209952025,0.00092,95783.0,95782.0,0.052194]
[1733209952026,0.00088001,95783.0,95782.0,0.052194]
[1733209952223,0.00088001,95783.0,95776.0,0.14136]
[1733209952224,0.05219,95789.0,95784.0,0.052193]
[1733209952522,0.05219,95789.0,95783.0,0.052193]
[1733209952725,0.05219,95789.0,95778.0,0.3608]
[1733209952933,0.05219,95789.0,95787.0,0.052191]
[1733209953119,0.05219,95789.0,95778.0,0.3608]
[1733209953120,0.11233603,95791.0,95780.0,0.052194]
[1733209953424,0.052192,95786.0,95781.0,0.052194]
[1733209953618,0.052193,95785.0,95783.0,0.001]
[1733209954015,0.412993,95785.0,95783.0,0.001]
[1733209954625,0.11234119,95784.0,95783.0,0.001]
[1733209955021,0.11234119,95784.0,95783.0,0.002]
[1733209955721,0.11234119,95784.0,95776.0,0.14136]
[1733209955927,0.052196,95778.0,95776.0,0.14136]
[1733209957626,0.052196,95778.0,95776.0,0.193557]
[1733209958034,0.052196,95778.0,95776.0,0.194557]
[1733209958632,0.053196,95778.0,95777.0,0.02089465]
[1733209959937,0.001,95778.0,95777.0,0.02089465]
[1733209961529,0.07408,95778.0,95777.0,0.02089465]
[1733209961731,0.07408,95778.0,95777.0,0.41359465]
[1733209961931,0.07408,95778.0,95777.0,0.38269465]
[1733209962126,0.07408,95778.0,95777.0,0.02189465]
[1733209962330,0.18641432,95778.0,95777.0,0.02189465]
[1733209962936,0.07408,95778.0,95777.0,0.02189465]
[1733209965027,0.18642662,95778.0,95777.0,0.02189465]
[1733209965227,0.21642662,95778.0,95777.0,0.02189465]
[1733209967043,0.21642662,95778.0,95777.0,0.001]
[1733209967044,0.10408,95778.0,95777.0,0.001]
[1733209967634,0.052197,95775.0,95774.0,0.0026]
[1733209967934,0.552197,95775.0,95774.0,0.0026]
[1733209968131,0.66454896,95775.0,95774.0,0.0026]
[1733209968734,0.552197,95775.0,95774.0,0.0036]
[1733209969837,0.66456125,95775.0,95774.0,0.0036]
[1733209970135,0.66556125,95775.0,95774.0,0.0036]
[1733209970330,0.66556125,95775.0,95774.0,0.00208851]
[1733209971940,0.553197,95775.0,95774.0,0.00208851]
[1733209974036,0.553237,95775.0,95774.0,0.00208851]
[1733209974737,0.66560125,95775.0,95774.0,0.00208851]
[1733209975040,0.052206,95760.0,95759.0,0.0052]
[1733209975341,0.413006,95760.0,95758.0,0.02089724]
[1733209975645,0.1123704,95759.0,95758.0,0.02089724]
[1733209977438,0.3618,95760.0,95758.0,0.02089724]
[1733209977633,0.3618,95760.0,95759.0,0.052206]
[1733209977839,0.3608,95760.0,95759.0,0.052206]
[1733209979043,0.43188,95760.0,95759.0,0.052206]
[1733209979447,0.54424551,95760.0,95759.0,0.052206]
[1733209982143,0.18344525,95760.0,95759.0,0.052206]
[1733209982946,0.07108,95760.0,95759.0,0.191446]
[1733209983250,0.07108,95760.0,95759.0,0.552246]
[1733209984554,0.07108,95760.0,95759.0,0.413006]
[1733209984741,0.07108,95760.0,95758.0,0.02089724]
[1733209985056,0.3608,95759.0,95758.0,0.02089724]
[1733209988350,0.47317047,95759.0,95758.0,0.02089724]
[1733209989444,0.50507047,95759.0,95758.0,0.02089724]
[1733209989649,0.50507047,95759.0,95756.0,0.052208]
[1733209989841,0.052214,95745.0,95744.0,0.052214]
[1733209990052,0.052214,95745.0,95744.0,0.054814]
[1733209990248,0.052214,95745.0,95744.0,0.0026]
[1733209991350,0.052214,95745.0,95744.0,0.0096]
[1733209991977,0.052214,95745.0,95744.0,0.0136]
[1733209992767,0.052214,95745.0,95744.0,0.0106]
[1733209992970,0.052214,95745.0,95744.0,0.0036]
[1733209993269,0.052214,95745.0,95744.0,0.0046]
[1733209993775,0.052214,95745.0,95728.0,0.0104]
[1733209993776,0.052223,95729.0,95728.0,0.0104]
[1733209994067,0.052224,95727.0,95726.0,0.02089724]
[1733209994973,0.3608,95729.0,95727.0,0.052224]
[1733209995569,0.11240501,95728.0,95727.0,0.052224]
[1733209995775,0.07312,95728.0,95727.0,0.052224]
[1733209996871,0.07312,95728.0,95727.0,0.056224]
[1733209997575,0.07312,95728.0,95727.0,0.062224]
[1733209998477,0.02322,95728.0,95727.0,0.058224]
[1733209998667,0.02322,95728.0,95727.0,0.200024]
[1733209999074,0.0104,95750.0,95749.0,0.052212]
[1733209999380,0.0104,95750.0,95728.0,0.052223]
[1733209999381,0.11238287,95753.0,95751.0,0.05221]
[1733209999680,0.11238287,95753.0,95751.0,0.19001]
[1733209999976,0.11238287,95753.0,95751.0,0.05221]
[1733210000283,0.11238287,95753.0,95752.0,0.1378]
[1733210000582,0.11538287,95753.0,95752.0,0.1378]
[1733210001674,0.003,95753.0,95752.0,0.1378]
[1733210002679,0.4339,95754.0,95753.0,0.05221]
[1733210003976,0.4349,95754.0,95753.0,0.05221]
[1733210004976,0.487109,95754.0,95752.0,0.1378]
[1733210005480,0.1029,95753.0,95752.0,0.1378]
[1733210005986,0.052212,95749.0,95748.0,0.13776]
[1733210006978,0.052212,95749.0,95748.0,0.13876]
[1733210007290,0.052212,95749.0,95748.0,0.001]
[1733210007680,0.052213,95747.0,95745.0,0.052213]
[1733210008291,0.084813,95747.0,95745.0,0.052213]
[1733210008879,0.085813,95747.0,95745.0,0.052213]
[1733210009077,0.085813,95747.0,95745.0,0.07311639]
[1733210009078,0.087813,95747.0,95745.0,0.07311639]
[1733210009279,0.087813,95747.0,95745.0,0.02090339]
[1733210009983,0.3608,95746.0,95745.0,0.02090339]
[1733210010374,0.052217,95739.0,95738.0,0.190017]
[1733210010583,0.052217,95739.0,95738.0,0.1378]
[1733210011480,0.05222,95736.0,95735.0,0.052219]
[1733210011681,0.41302,95736.0,95735.0,0.02090339]
[1733210011885,0.05222,95734.0,95733.0,0.00064]
[1733210012083,0.05222,95734.0,95727.0,0.413024]
[1733210012084,0.05222,95734.0,95729.0,0.1378]
[1733210012389,0.0324,95733.0,95729.0,0.190022]
[1733210012688,0.0324,95733.0,95726.0,0.1378]
[1733210013389,0.0324,95733.0,95732.0,0.00556676]
[1733210013590,0.0324,95733.0,95727.0,0.02090339]
[1733210013591,0.50560002,95733.0,95718.0,0.0052]
[1733210013895,0.50560002,95733.0,95713.0,0.15069983]
[1733210013896,0.05223,95716.0,95713.0,0.15069983]
[1733210014087,0.05223,95716.0,95714.0,0.1378]
[1733210014276,0.05223,95716.0,95714.0,0.190031]
[1733210014478,0.052229,95717.0,95715.0,0.02090813]
[1733210014684,0.052229,95717.0,95716.0,0.1378]
[1733210015898,0.052229,95717.0,95716.0,0.1398]
[1733210016188,0.0026,95718.0,95716.0,0.1398]
[1733210016386,0.0026,95718.0,95717.0,0.052229]
[1733210017489,0.054829,95718.0,95717.0,0.054229]
[1733210017688,0.054829,95718.0,95717.0,0.191429]